fUST/lending_fUST_20251229
["ID","MTS","AMOUNT","RATE_DAILY","PERIOD"]
[399957054,1766940638457,-62582.94896618,0.00023547,2]
[399957055,1766940638469,-2521.307953,0.00023547,2]
[399957056,1766940638482,-4389.26336918,0.00023547,2]
[399957085,1766940640538,-440.45,0.00023547,2]
[399957227,1766940646552,-5000.0,0.00023311,2]
[399957228,1766940646563,-3652.18314052,0.00023499,2]
[399957229,1766940646574,-1624.93974276,0.00023547,2]
[399957230,1766940646615,-3245.60112131,0.00023547,2]
[399957247,1766941832398,-439.806333,0.00013699,2]
[399957248,1766941832409,-615.0,0.00013699,2]
[399957249,1766941832420,-84.24156196,0.00016943,2]
[399957250,1766941832432,-65.75843804,0.00016943,2]
[399957251,1766941832441,-177.0,0.00018943,2]
[399957252,1766941832451,-439.806333,0.00020187,2]
[399957253,1766941832460,-204.0,0.00020943,2]
[399957254,1766941832470,-160.0,0.00021853,2]
[399957255,1766941832479,-150.0,0.00021918,2]
[399957256,1766941832488,-300.0,0.00022466,2]
[399957257,1766941832498,-1041.66666667,0.00022925,2]
[399957258,1766941832507,-218.61178051,0.00022943,2]
[399957259,1766941832517,-1000.0,0.00023206,2]
[399957260,1766941832527,-36.62630467,0.00023225,2]
[399957261,1766941832538,-963.37369533,0.00023225,2]
[399957262,1766941832547,-1000.0,0.00023286,2]
[399957263,1766941832556,-1000.0,0.00023358,2]
[399957264,1766941832565,-500.0,0.00023362,2]
[399957265,1766941832576,-300.0,0.00023364,2]
[399957266,1766941832586,-1000.0,0.00023365,2]
[399957267,1766941832595,-207.94045035,0.00023365,2]
[399957268,1766941832606,-500.0,0.00023365,2]
[399957269,1766941832615,-500.0,0.00023365,2]
[399957270,1766941832624,-482.1854578,0.00023365,2]
[399957271,1766941832634,-500.0,0.00023365,2]
[399957272,1766941832644,-484.75021001,0.00023365,2]
[399957273,1766941832654,-411.3484749,0.00023366,2]
[399957274,1766941832665,-1000.0,0.00023366,2]
[399957275,1766941832676,-211.46831099,0.00023366,2]
[399957276,1766941832867,-283.57201222,0.00023415,2]
[399957277,1766941832879,-421.34932773,0.00023415,2]
[399957278,1766941832890,-295.07866005,0.00023415,2]
[399957279,1766941832899,-111.95204451,0.00023433,2]
[399957282,1766941838460,-371.06795549,0.00023433,2]
[399957283,1766941838470,-575.98984556,0.00023439,2]
[399957284,1766941838480,-202.80494279,0.00023439,2]
[399957285,1766941838490,-1403.74030089,0.00023439,2]
[399957286,1766941838500,-1403.74030089,0.00023439,2]
[399957287,1766941838511,-1403.74030089,0.00023439,2]
[399957288,1766941838521,-1403.74030089,0.00023439,2]
[399957289,1766941838531,-1403.74030089,0.00023439,2]
[399957290,1766941838540,-1403.74030089,0.00023439,2]
[399957291,1766941838550,-1403.74030089,0.00023439,2]
[399957292,1766941838559,-1403.74030089,0.00023439,2]
[399957293,1766941838569,-1403.74030089,0.00023439,2]
[399957294,1766941838579,-1000000.0,0.00023441,2]
[399957295,1766941838588,-1000.0,0.00023466,2]
[399957296,1766941838599,-3793.28608948,0.00023499,2]
[399957297,1766941838609,-1000.0,0.00023499,2]
[399957298,1766941838618,-500.0,0.00023533,2]
[399957299,1766941838627,-169.619,0.00023538,4]
[399957300,1766941838638,-1000.0,0.00023541,2]
[399957301,1766941838647,-500.0,0.00023544,2]
[399957302,1766941838657,-256.6788,0.00023545,2]
[399957303,1766941838666,-500.0,0.00023599,2]
[399957304,1766941838676,-150.05,0.000236,2]
[399957305,1766941838687,-472.73,0.000236,14]
[399957306,1766941838696,-8896.94,0.000236,2]
[399957307,1766941838705,-1823.5,0.000236,7]
[399957308,1766941838714,-1000.0,0.00023668,2]
[399957309,1766941838723,-1000.0,0.00023669,2]
[399957310,1766941838733,-500.0,0.0002384,2]
[399957311,1766941838742,-500.0,0.0002397,2]
[399957312,1766941838752,-1000.0,0.00024004,2]
[399957313,1766941838762,-1000.0,0.00024006,2]
[399957314,1766941838771,-600.0,0.00024017,10]
[399957315,1766941838780,-500.0,0.00024025,2]
[399957316,1766941838789,-1000.0,0.00024169,2]
[399957317,1766941838798,-159.96314885,0.00024183,2]
[399957318,1766941838807,-1000.0,0.00024228,2]
[399957319,1766941838817,-11544.0903534,0.00024251,2]
[399957320,1766941838826,-189.7696248,0.00024251,2]
[399957321,1766941838835,-1045.9408084,0.00024251,2]
[399957322,1766941838845,-44691.1249539,0.00024251,2]
[399957323,1766941838854,-189.769625,0.00024251,2]
[399957324,1766941838863,-1000.0,0.00024345,2]
[399957325,1766941838873,-1000.0,0.00024366,2]
[399957326,1766941838882,-152.43060572,0.00024426,2]
[399957327,1766941838891,-1000.0,0.00024429,2]
[399957328,1766941838900,-500.0,0.0002451,2]
[399957329,1766941838909,-1000.0,0.00024522,2]
[399957330,1766941838919,-150.0,0.00024555,2]
[399957331,1766941838929,-633.0,0.00024555,2]
[399957332,1766941838938,-1363.0,0.00024555,2]
[399957333,1766941838947,-1000.0,0.00024627,2]
[399957334,1766941838957,-150.0,0.00024658,2]
[399957335,1766941838967,-200.0,0.00024658,2]
[399957336,1766941838976,-380.0,0.00024658,2]
[399957337,1766941838985,-1000.0,0.00024661,2]
[399957338,1766941838994,-1000.0,0.00024716,2]
[399957339,1766941839004,-500.0,0.00024773,2]
[399957340,1766941839013,-500.0,0.00024773,2]
[399957341,1766941839023,-500.0,0.00024773,2]
[399957342,1766941839033,-500.0,0.00024773,2]
[399957343,1766941839042,-500.0,0.00024773,2]
[399957344,1766941839051,-500.0,0.00024773,2]
[399957345,1766941839060,-500.0,0.00024773,2]
[399957346,1766941839071,-500.0,0.00024773,2]
[399957347,1766941839080,-500.0,0.00024773,2]
[399957348,1766941839089,-500.0,0.00024773,2]
[399957349,1766941839098,-500.0,0.00024773,2]
[399957350,1766941839108,-500.0,0.00024773,2]
[399957351,1766941839117,-500.0,0.00024773,2]
[399957352,1766941839126,-383.9531783,0.00024773,2]
[399957353,1766941839135,-20768.6764116,0.000248,2]
[399957354,1766941839144,-1000.0,0.00024802,2]
[399957355,1766941839154,-1622.81678585,0.00024814,2]
[399957356,1766941839163,-500.0,0.00024853,2]
[399957357,1766941839172,-1000.0,0.00024856,2]
[399957358,1766941839181,-1000.0,0.00024893,2]
[399957359,1766941839190,-537721.918786,0.000249,2]
[399957360,1766941839199,-500.0,0.00024988,2]
[399957361,1766941839208,-995.3526357,0.00024993,2]
[399957362,1766941839217,-1000.0,0.00025016,7]
[399957363,1766941839227,-8896.94,0.000251,2]
[399957364,1766941839236,-1823.5,0.000251,7]
[399957365,1766941839245,-1841.98478323,0.00025103,7]
[399957366,1766941839255,-150.05,0.000252,2]
[399957367,1766941839265,-472.73,0.000252,14]
[399957368,1766941839275,-250.0,0.00025205,2]
[399957369,1766941839286,-420.0,0.00025353,2]
[399957370,1766941839296,-350.0,0.00025753,2]
[399957371,1766941839305,-1021.12614748,0.00026,2]
[399957372,1766941839315,-1622.81678585,0.00026261,2]
[399957373,1766941839324,-450.0,0.00026301,2]
[399957374,1766941839333,-720.0,0.00026419,30]
[399957375,1766941839345,-439.806333,0.00026676,2]
[399957376,1766941839355,-1045.9408084,0.00026696,2]
[399957377,1766941839364,-550.0,0.00026849,2]
[399957378,1766941839373,-200.0,0.00026876,30]
[399957379,1766941839383,-200.0,0.00026876,30]
[399957380,1766941839392,-393.00356204,0.00026876,30]
[399957381,1766941839401,-500.0,0.00027,30]
[399957382,1766941839410,-1016.0,0.00027,2]
[399957383,1766941839420,-197.70845747,0.00027059,2]
[399957384,1766941839429,-11544.0903534,0.00027126,2]
[399957385,1766941839439,-863.36782198,0.00027196,2]
[399957386,1766941839448,-1940.63502185,0.00027196,2]
[399957387,1766941839457,-460.21105397,0.00027196,2]
[399957388,1766941839466,-827.55151724,0.00027196,2]
[399957389,1766941839475,-176.71868879,0.00027397,2]
[399957390,1766941839484,-650.0,0.00027397,5]
[399957391,1766941839494,-322.85207,0.00027397,7]
[399957392,1766941839503,-322.85207,0.00027397,7]
[399957393,1766941839512,-322.85207,0.00027397,7]
[399957394,1766941839521,-322.85207,0.00027397,7]
[399957395,1766941839530,-500.0,0.00027397,5]
[399957396,1766941839539,-157.03596701,0.00027397,5]
[399957397,1766941839548,-150.0,0.00027397,5]
[399957398,1766941839557,-150.0,0.00027397,5]
[399957399,1766941839567,-775.0,0.000275,2]
[399957400,1766941839576,-420.0,0.00027512,2]
[399957401,1766941839584,-1622.81678585,0.00027709,2]
[399957402,1766941839593,-410.0,0.00027864,2]
[399957403,1766941839603,-410.0,0.00027878,2]
[399957404,1766941839612,-44691.1249539,0.00027883,2]
[399957405,1766941839622,-150.05,0.000279,2]
[399957406,1766941839632,-1823.5,0.000279,7]
[399957407,1766941839642,-410.0,0.00027931,7]
[399957408,1766941839651,-413.0,0.00027937,7]
[399957409,1766941839660,-1358.86389167,0.00027945,5]
[399957410,1766941839669,-1000.0,0.00027945,5]
[399957411,1766941839679,-750.0,0.00027945,5]
[399957412,1766941839688,-250.0,0.00027945,5]
[399957413,1766941839697,-250.0,0.00027945,5]
[399957414,1766941839707,-415.0,0.00027953,2]
[399957415,1766941839716,-500.0,0.00028,30]
[399957416,1766941839725,-1016.0,0.00028,2]
[399957417,1766941839735,-226.49398195,0.00028032,30]
[399957418,1766941839743,-410.0,0.00028063,7]
[399957419,1766941839752,-8896.94,0.000281,2]
[399957420,1766941839761,-226.49398195,0.00028118,30]
[399957421,1766941839770,-226.49398195,0.00028205,30]
[399957422,1766941839779,-410.0,0.00028251,2]
[399957423,1766941839788,-226.49398195,0.00028291,30]
[399957424,1766941839797,-410.0,0.00028292,2]
[399957425,1766941839807,-472.73,0.000283,14]
[399957426,1766941839816,-410.0,0.00028347,2]
[399957427,1766941839825,-226.49398195,0.00028378,30]
[399957428,1766941839833,-413.0,0.00028387,2]
[399957429,1766941839842,-410.0,0.00028449,2]
[399957430,1766941839851,-410.0,0.00028461,2]
[399957431,1766941839860,-226.49398195,0.00028464,30]
[399957432,1766941839869,-850.0,0.00028493,5]
[399957433,1766941839878,-1340.73221001,0.00028493,5]
[399957434,1766941839887,-350.0,0.00028493,5]
[399957435,1766941839896,-350.0,0.00028493,5]
[399957436,1766941839905,-226.49398195,0.00028551,30]
[399957437,1766941839915,-413.0,0.00028566,2]
[399957438,1766941839924,-410.0,0.00028605,2]
[399957439,1766941839934,-337.8678325,0.00028627,2]
[399957440,1766941839944,-226.49398195,0.00028637,30]
[399957441,1766941839953,-410.0,0.00028714,2]
[399957442,1766941839961,-226.49398195,0.00028724,30]
[399957443,1766941839970,-410.0,0.00028724,2]
[399957444,1766941839979,-413.0,0.00028755,2]
[399957445,1766941839989,-226.49398195,0.0002881,30]
[399957446,1766941839998,-226.49398195,0.00028896,30]
[399957447,1766941840007,-162.380719,0.00028929,2]
[399957448,1766941840016,-250.0,0.00028929,2]
[399957449,1766941840025,-500.0,0.00028929,2]
[399957450,1766941840034,-250.0,0.00028929,2]
[399957451,1766941840043,-151.0,0.00028929,2]
[399957452,1766941840052,-445.202766,0.00028929,2]
[399957453,1766941840062,-4181.034672,0.00028929,2]
[399957454,1766941840071,-250.0,0.00028929,2]
[399957455,1766941840080,-151.0,0.00028929,2]
[399957456,1766941840089,-500.0,0.00028929,2]
[399957457,1766941840098,-151.0,0.00028929,2]
[399957458,1766941840106,-151.0,0.00028929,2]
[399957459,1766941840117,-151.0,0.00028929,2]
[399957460,1766941840127,-2150.738,0.00028929,2]
[399957461,1766941840137,-410.0,0.00028965,2]
[399957462,1766941840147,-226.49398195,0.00028983,30]
[399957463,1766941840158,-1016.0,0.00029,2]
[399957464,1766941840168,-410.0,0.00029023,2]
[399957465,1766941840177,-413.0,0.00029031,2]
[399957466,1766941840186,-450.0,0.00029041,5]
[399957467,1766941840195,-864.0,0.00029061,30]
[399957468,1766941840204,-452.88796389,0.00029069,30]
[399957469,1766941840214,-1045.9408084,0.00029141,2]
[399957470,1766941840223,-1622.81678585,0.00029157,2]
[399957471,1766941840232,-8560.0,0.00029181,10]
[399957472,1766941840241,-410.0,0.00029351,2]
[399957473,1766941840250,-500.0,0.00029423,14]
[399957474,1766941840259,-410.0,0.00029436,2]
[399957475,1766941840268,-461.67526834,0.00029477,2]
[399957476,1766941840287,-150.05,0.000295,2]
[399957478,1766941840298,-2718.152546,0.000295,2]
[399957480,1766941840307,-550.0,0.00029589,5]
[399957481,1766941840316,-1823.5,0.000296,7]
[399957482,1766941840326,-410.0,0.00029674,2]
[399957483,1766941840336,-8896.94,0.000298,2]
[399957484,1766941840349,-1076.609396,0.0002998,5]
[399957485,1766941840358,-1537.02206133,0.00029983,7]
[399957486,1766941840368,-7697.83132789,0.0003,2]
[399957487,1766941840377,-151.0,0.0003,14]
[399957488,1766941840389,-166.0,0.0003,14]
[399957489,1766941840399,-1000.0,0.0003,5]
[399957491,1766941840408,-1013.24,0.0003,30]
[399957492,1766941840419,-1016.0,0.0003,7]
[399957493,1766941840428,-1500.0,0.0003,2]
[399957494,1766941840437,-11544.0903534,0.0003,2]
[399957495,1766941840447,-478.75725327,0.00030025,2]
[399957497,1766941840457,-10000.0,0.00030034,2]
[399957499,1766941840466,-12660.58515386,0.00030034,2]
[399957501,1766941840476,-1013.24,0.0003006,30]
[399957503,1766941840486,-472.73,0.000301,14]
[399957505,1766941840495,-164.407203,0.00030133,7]
[399957507,1766941840504,-164.407203,0.00030133,7]
[399957508,1766941840514,-164.407203,0.00030133,7]
[399957510,1766941840523,-164.407203,0.00030133,7]
[399957511,1766941840533,-151.0,0.00030133,7]
[399957512,1766941840542,-151.0,0.00030133,7]
[399957513,1766941840551,-151.0,0.00030133,7]
[399957514,1766941840561,-155.40614545,0.00030134,2]
[399957515,1766941840570,-621.62458181,0.00030134,2]
[399957516,1766941840579,-1398.65530907,0.00030134,2]
[399957517,1766941840589,-500.0,0.00030134,30]
[399957518,1766941840598,-152.43060572,0.00030134,2]
[399957519,1766941840607,-500.0,0.00030134,14]
[399957521,1766941840616,-574.96333118,0.00030134,14]
[399957522,1766941840625,-2484.0118289,0.00030134,2]
[399957523,1766941840634,-458.49527125,0.00030134,2]
[399957524,1766941840643,-322.85207,0.00030134,7]
[399957525,1766941840653,-322.85207,0.00030134,7]
[399957526,1766941840663,-322.85207,0.00030134,7]
[399957528,1766941840672,-322.85207,0.00030134,7]
[399957530,1766941840681,-322.85207,0.00030134,7]
[399957532,1766941840691,-322.85207,0.00030134,7]
[399957534,1766941840700,-322.85207,0.00030134,7]
[399957536,1766941840709,-322.85207,0.00030134,7]
[399957538,1766941840719,-366.4569394,0.00030134,2]
[399957540,1766941840728,-500.0,0.00030134,100]
[399957542,1766941840737,-500.0,0.00030134,100]
[399957544,1766941840746,-500.0,0.00030134,100]
[399957546,1766941840754,-500.0,0.00030134,100]
[399957547,1766941840763,-500.0,0.00030134,100]
[399957549,1766941840773,-500.0,0.00030134,100]
[399957551,1766941840783,-500.0,0.00030134,100]
[399957553,1766941840792,-500.0,0.00030134,100]
[399957555,1766941840802,-244.71731986,0.00030134,100]
[399957557,1766941840812,-166.77848822,0.00030134,60]
[399957559,1766941840821,-500.0,0.00030134,14]
[399957561,1766941840830,-509.17633363,0.00030134,14]
[399957563,1766941840839,-557.39,0.00030134,7]
[399957565,1766941840848,-557.39,0.00030134,7]
[399957567,1766941840858,-557.39,0.00030134,7]
[399957569,1766941840867,-557.39,0.00030134,7]
[399957571,1766941840876,-557.39,0.00030134,7]
[399957573,1766941840885,-557.39,0.00030134,7]
[399957575,1766941840894,-557.39,0.00030134,7]
[399957578,1766941840904,-557.39,0.00030134,7]
[399957580,1766941840914,-557.39,0.00030134,7]
[399957581,1766941840923,-557.39,0.00030134,7]
[399957584,1766941840935,-557.39,0.00030134,7]
[399957585,1766941840944,-557.39,0.00030134,7]
[399957587,1766941840954,-557.39,0.00030134,7]
[399957589,1766941840964,-557.39,0.00030134,7]
[399957591,1766941840974,-557.39,0.00030134,7]
[399957593,1766941840982,-557.39,0.00030134,7]
[399957595,1766941840991,-557.39,0.00030134,7]
[399957597,1766941841000,-557.39,0.00030134,7]
[399957599,1766941841009,-557.39,0.00030134,7]
[399957602,1766941841019,-557.39,0.00030134,7]
[399957605,1766941841028,-557.39,0.00030134,7]
[399957607,1766941841037,-557.39,0.00030134,7]
[399957609,1766941841046,-557.39,0.00030134,7]
[399957611,1766941841055,-557.51573695,0.00030134,7]
[399957613,1766941841064,-500.0,0.00030134,30]
[399957615,1766941841073,-500.0,0.00030134,30]
[399957617,1766941841082,-500.0,0.00030134,30]
[399957619,1766941841092,-300.92372411,0.00030134,30]
[399957621,1766941841101,-504.2834324,0.00030134,12]
[399957623,1766941841109,-835.7,0.00030134,2]
[399957626,1766941841122,-835.7,0.00030134,2]
[399957628,1766941841132,-835.7,0.00030134,2]
[399957630,1766941841141,-835.7,0.00030134,2]
[399957632,1766941841150,-835.7,0.00030134,2]
[399957634,1766941841159,-835.7,0.00030134,2]
[399957636,1766941841168,-835.7,0.00030134,2]
[399957638,1766941841177,-835.7,0.00030134,2]
[399957640,1766941841187,-835.7,0.00030134,2]
[399957642,1766941841198,-835.7,0.00030134,2]
[399957644,1766941841207,-835.7,0.00030134,2]
[399957646,1766941841216,-835.7,0.00030134,2]
[399957648,1766941841227,-835.7,0.00030134,2]
[399957650,1766941841236,-835.7,0.00030134,2]
[399957652,1766941841245,-835.7,0.00030134,2]
[399957654,1766941841254,-835.7,0.00030134,2]
[399957656,1766941841263,-835.7,0.00030134,2]
[399957658,1766941841272,-835.7,0.00030134,2]
[399957660,1766941841281,-835.7,0.00030134,2]
[399957662,1766941841290,-835.7,0.00030134,2]
[399957664,1766941841300,-835.7,0.00030134,2]
[399957666,1766941841309,-835.7,0.00030134,2]
[399957668,1766941841319,-835.7,0.00030134,2]
[399957670,1766941841328,-835.81206835,0.00030134,2]
[399957672,1766941841338,-500.0,0.00030134,15]
[399957674,1766941841350,-500.0,0.00030134,15]
[399957676,1766941841359,-500.0,0.00030134,15]
[399957678,1766941841368,-500.0,0.00030134,15]
[399957680,1766941841378,-500.0,0.00030134,15]
[399957682,1766941841389,-500.0,0.00030134,15]
[399957684,1766941841399,-500.0,0.00030134,15]
[399957686,1766941841408,-500.0,0.00030134,15]
[399957688,1766941841420,-500.0,0.00030134,15]
[399957690,1766941841430,-500.0,0.00030134,15]
[399957692,1766941841446,-500.0,0.00030134,15]
[399957694,1766941841462,-500.0,0.00030134,15]
[399957696,1766941841471,-500.0,0.00030134,15]
[399957698,1766941841481,-500.0,0.00030134,15]
[399957700,1766941841492,-500.0,0.00030134,15]
[399957702,1766941841502,-633.40936575,0.00030134,15]
[399957705,1766941841511,-1000.0,0.00030134,2]
[399957706,1766941841520,-1000.0,0.00030134,2]
[399957709,1766941841532,-1000.0,0.00030134,2]
[399957731,1766941841736,-1000.0,0.00030134,2]
[399957734,1766941841751,-1000.0,0.00030134,2]
[399957736,1766941841760,-1000.0,0.00030134,2]
[399957738,1766941841772,-1000.0,0.00030134,2]
[399957740,1766941841781,-1000.0,0.00030134,2]
[399957742,1766941841791,-1000.0,0.00030134,2]
[399957744,1766941841800,-1000.0,0.00030134,2]
[399957746,1766941841809,-1000.0,0.00030134,2]
[399957748,1766941841819,-1000.0,0.00030134,2]
[399957750,1766941841827,-1000.0,0.00030134,2]
[399957752,1766941841837,-923.79144951,0.00030134,2]
[399957754,1766941841846,-1000.0,0.00030134,2]
[399957756,1766941841855,-576.22176761,0.00030134,2]
[399957758,1766941841865,-500.0,0.00030134,30]
[399957760,1766941841874,-279.88946123,0.00030134,30]
[399957762,1766941841884,-1365.75,0.00030134,30]
[399957764,1766941841893,-1318.75149579,0.00030134,30]
[399957769,1766941841923,-46.99850421,0.00030134,30]
[399957771,1766941841932,-1365.75,0.00030134,30]
[399957773,1766941841941,-1365.75,0.00030134,30]
[399957775,1766941841950,-1365.75,0.00030134,30]
[399957777,1766941841959,-1365.75,0.00030134,30]
[399957779,1766941841969,-1365.75,0.00030134,30]
[399957781,1766941841979,-1365.75,0.00030134,30]
[399957783,1766941841988,-1365.75,0.00030134,30]
[399957784,1766941841998,-1365.75,0.00030134,30]
[399957786,1766941842009,-1365.75,0.00030134,30]
[399957788,1766941842017,-1365.75,0.00030134,30]
[399957790,1766941842027,-1365.75,0.00030134,30]
[399957792,1766941842036,-1365.75,0.00030134,30]
[399957794,1766941842045,-1365.75,0.00030134,30]
[399957797,1766941842058,-1365.75,0.00030134,30]
[399957798,1766941842068,-1365.75,0.00030134,30]
[399957800,1766941842077,-1365.75,0.00030134,30]
[399957802,1766941842086,-1365.75,0.00030134,30]
[399957804,1766941842095,-1365.75,0.00030134,30]
[399957806,1766941842104,-1365.75,0.00030134,30]
[399957808,1766941842115,-1365.75,0.00030134,30]
[399957811,1766941842124,-1365.75,0.00030134,30]
[399957813,1766941842134,-1365.8558667,0.00030134,30]
[399957815,1766941842143,-500.0,0.00030134,30]
[399957817,1766941842152,-500.0,0.00030134,30]
[399957819,1766941842161,-500.0,0.00030134,30]
[399957821,1766941842171,-500.0,0.00030134,8]
[399957823,1766941842180,-500.0,0.00030134,30]
[399957824,1766941842190,-500.0,0.00030134,8]
[399957826,1766941842199,-500.0,0.00030134,30]
[399957828,1766941842208,-500.0,0.00030134,8]
[399957830,1766941842217,-500.0,0.00030134,30]
[399957832,1766941842227,-500.0,0.00030134,8]
[399957834,1766941842235,-500.0,0.00030134,30]
[399957836,1766941842245,-500.0,0.00030134,8]
[399957838,1766941842254,-500.0,0.00030134,30]
[399957840,1766941842264,-500.0,0.00030134,8]
[399957842,1766941842273,-500.0,0.00030134,30]
[399957844,1766941842282,-500.0,0.00030134,8]
[399957846,1766941842291,-500.0,0.00030134,30]
[399957848,1766941842300,-500.0,0.00030134,8]
[399957850,1766941842309,-500.0,0.00030134,30]
[399957852,1766941842318,-500.0,0.00030134,8]
[399957854,1766941842327,-500.0,0.00030134,30]
[399957856,1766941842336,-500.0,0.00030134,8]
[399957858,1766941842349,-500.0,0.00030134,30]
[399957860,1766941842358,-500.0,0.00030134,8]
[399957862,1766941842367,-500.0,0.00030134,30]
[399957864,1766941842376,-500.0,0.00030134,8]
[399957866,1766941842387,-500.0,0.00030134,30]
[399957868,1766941842396,-500.0,0.00030134,8]
[399957870,1766941842405,-500.0,0.00030134,30]
[399957872,1766941842413,-500.0,0.00030134,8]
[399957874,1766941842424,-500.0,0.00030134,30]
[399957876,1766941842435,-500.0,0.00030134,8]
[399957877,1766941842444,-500.0,0.00030134,30]
[399957879,1766941842454,-500.0,0.00030134,8]
[399957880,1766941842464,-500.0,0.00030134,30]
[399957881,1766941842473,-500.0,0.00030134,8]
[399957882,1766941842483,-500.0,0.00030134,30]
[399957883,1766941842492,-500.0,0.00030134,8]
[399957884,1766941842502,-154.28945192,0.00030134,30]
[399957885,1766941842522,-181.84831614,0.00030134,8]
[399957886,1766941842534,-1000.0,0.00030134,14]
[399957887,1766941842543,-164.407203,0.00030134,7]
[399957888,1766941842555,-164.407203,0.00030134,7]
[399957889,1766941842564,-164.407203,0.00030134,7]
[399957890,1766941842574,-164.407203,0.00030134,7]
[399957891,1766941842584,-164.407203,0.00030134,7]
[399957892,1766941842595,-164.407203,0.00030134,7]
[399957893,1766941842604,-164.407203,0.00030134,7]
[399957894,1766941842614,-164.407203,0.00030134,7]
[399957895,1766941842623,-500.0,0.00030134,20]
[399957896,1766941842632,-500.0,0.00030134,20]
[399957897,1766941842652,-500.0,0.00030134,20]
[399957898,1766941842664,-500.0,0.00030134,20]
[399957899,1766941842673,-500.0,0.00030134,20]
[399957900,1766941842682,-500.0,0.00030134,20]
[399957901,1766941842691,-500.0,0.00030134,20]
[399957902,1766941842700,-500.0,0.00030134,20]
[399957903,1766941842709,-500.0,0.00030134,20]
[399957904,1766941842717,-500.0,0.00030134,20]
[399957905,1766941842726,-500.0,0.00030134,20]
[399957906,1766941842735,-500.0,0.00030134,20]
[399957907,1766941842744,-500.0,0.00030134,20]
[399957908,1766941842754,-500.0,0.00030134,20]
[399957909,1766941842762,-500.0,0.00030134,20]
[399957910,1766941842771,-500.0,0.00030134,20]
[399957911,1766941842780,-500.0,0.00030134,20]
[399957912,1766941842789,-13227.89755126,0.00030134,3]
[399957913,1766941842802,-307.01244874,0.00030134,3]
[399957914,1766941842812,-13534.91,0.00030134,3]
[399957915,1766941842821,-13534.91,0.00030134,3]
[399957916,1766941842830,-133.42517039,0.00030134,3]
[399957917,1766941842841,-13401.48482961,0.00030134,3]
[399957918,1766941842850,-9139.30137635,0.00030134,3]
[399957919,1766941842861,-2012.70208524,0.00030134,3]
[399957920,1766941842890,-500.0,0.00030134,3]
[399957921,1766941842902,-1251.64436597,0.00030134,3]
[399957922,1766941842913,-631.26217244,0.00030134,3]
[399957923,1766941842923,-1520.9711273,0.00030134,3]
[399957924,1766941842934,-4082.11870766,0.00030134,3]
[399957925,1766941842964,-654.9951654,0.00030134,3]
[399957926,1766941842975,-3821.97617758,0.00030134,3]
[399957928,1766941843222,-1403.74030089,0.00023439,2]
[399957929,1766941843232,-1403.74030089,0.00023439,2]
[399957930,1766941843241,-1403.74030089,0.00023439,2]
[399957931,1766941843250,-1403.74030089,0.00023439,2]
[399957932,1766941843261,-1403.74030089,0.00023439,2]
[399957933,1766941843270,-1403.74030089,0.00023439,2]
[399957934,1766941843281,-2600.57352039,0.00029511,10]
[399957935,1766941843292,-830.54748032,0.00029511,10]
[399957991,1766941846626,-3454.84882206,0.00030134,3]
[399957992,1766941846636,-5278.05117794,0.00030134,3]
[399957993,1766941846648,-860.28587217,0.00030134,3]
[399957996,1766941846784,-1480.25142807,0.00030134,3]
[399958038,1766943031676,-489.89863875,0.00013273,2]
[399958040,1766943031685,-150.0,0.000146,2]